bitfinex-derivatives/quotes_ETHF0:USTF0_20240831
["timestamp","ask_amount","ask_price","bid_price","bid_amount"]
[1725065317570,5.82175415,2529.9,2529.7,1.03125539]
[1725065317769,0.7448,2529.8,2529.7,1.03125539]
[1725065317969,0.7448,2529.8,2529.7,2.03855649]
[1725065318169,5.18657603,2529.8,2529.7,2.03855649]
[1725065318570,5.46328603,2529.8,2529.7,1.42197977]
[1725065319073,9.41608603,2529.8,2529.7,2.03821404]
[1725065319272,9.41608603,2529.8,2529.7,1.42197977]
[1725065320182,5.46328603,2529.8,2529.7,1.42197977]
[1725065320975,5.46328603,2529.8,2529.7,0.39044512]
[1725065321572,4.80147603,2529.8,2529.7,1.42170051]
[1725065321772,5.07818603,2529.8,2529.7,1.42170051]
[1725065324678,5.07818603,2529.8,2529.7,1.03125539]
[1725065324884,5.07818603,2529.8,2529.7,1.42168153]
[1725065327477,5.07818603,2529.8,2529.7,4.01495637]
[1725065327681,5.07818603,2529.8,2529.7,4.52790722]
[1725065327887,5.07818603,2529.8,2529.7,2.98362445]
[1725065328075,5.07818603,2529.8,2529.7,4.01420727]
[1725065328991,5.07818603,2529.8,2529.7,1.42098252]
[1725065329690,5.07818603,2529.8,2529.7,0.3903997]
[1725065329984,10.17098603,2529.8,2529.7,0.3903997]
[1725065330180,10.17098603,2529.8,2529.2,1.89726723]
[1725065330181,4.64461,2529.7,2529.2,1.89726723]
[1725065330386,1.41677,2529.3,2529.2,0.86668441]
[1725065330791,5.88225615,2529.3,2529.2,0.86668441]
[1725065330982,0.27679,2529.2,2529.0,1.40738282]
[1725065331180,3.2078,2529.1,2529.0,0.3768]
[1725065331482,7.38840778,2529.1,2529.0,1.68418282]
[1725065331988,7.38840778,2529.1,2529.0,2.63128924]
[1725065332482,7.38840778,2529.1,2529.0,3.6616452]
[1725065332680,4.18060778,2529.1,2529.0,3.6616452]
[1725065332888,4.18060778,2529.1,2529.0,4.27799799]
[1725065333196,4.41512637,2529.4,2529.1,0.27678]
[1725065333378,4.41512637,2529.4,2529.1,1.30708976]
[1725065333379,0.27676,2529.4,2529.1,1.30708976]
[1725065333576,4.13836637,2529.3,2529.1,0.27678]
[1725065334387,4.13836637,2529.3,2529.2,0.27678]
[1725065334788,4.49645704,2529.4,2529.3,0.27677]
[1725065334985,4.3478,2529.5,2529.2,0.27677]
[1725065335287,4.56076923,2529.4,2529.3,0.3551]
[1725065337085,7.76856923,2529.4,2529.3,0.3551]
[1725065340293,8.04531923,2529.4,2529.3,0.3551]
[1725065340788,7.76856923,2529.4,2529.3,0.3551]
[1725065343796,7.76856923,2529.4,2529.3,0.63187]
[1725065344092,1.14,2529.6,2529.5,0.27674]
[1725065344497,5.50768846,2529.6,2529.5,0.27674]
[1725065344987,5.50768846,2529.6,2529.4,0.27675]
[1725065346799,3.2078,2529.5,2529.4,0.27675]
[1725065349096,3.2078,2529.5,2529.3,0.63186]
[1725065349400,1.14,2529.4,2529.3,0.27676]
[1725065349899,5.32893512,2529.4,2529.3,0.27676]
[1725065350098,3.2078,2529.5,2529.4,0.27675]
[1725065350299,3.2078,2529.5,2529.4,4.58405]
[1725065351505,4.3478,2529.5,2529.2,1.39130976]
[1725065351701,1.14,2529.3,2529.2,0.361]
[1725065352115,4.4156768,2529.3,2529.2,0.63778]
[1725065352915,4.4156768,2529.3,2529.2,4.59138]
[1725065353514,4.4156768,2529.3,2529.2,0.63778]
[1725065353921,4.4156768,2529.3,2529.2,4.59138]
[1725065354414,4.4156768,2529.3,2529.2,0.63778]
[1725065354614,4.4156768,2529.3,2529.2,1.02829874]
[1725065354819,4.4156768,2529.3,2529.2,0.63778]
[1725065355222,4.4156768,2529.3,2529.2,1.02829965]
[1725065356411,4.4156768,2529.3,2529.2,4.03608285]
[1725065356820,4.4156768,2529.3,2529.2,7.98968285]
[1725065357524,4.4156768,2529.3,2529.2,7.98988978]
[1725065358016,4.4156768,2529.3,2529.2,7.5757384]
[1725065358224,4.4156768,2529.3,2529.2,8.60621088]
[1725065358432,4.4156768,2529.3,2529.2,9.11994464]
[1725065358921,4.4156768,2529.3,2529.2,8.6064136]
[1725065359226,4.4156768,2529.3,2529.2,7.5757384]
[1725065359432,4.4156768,2529.3,2529.2,8.60643332]
[1725065359723,4.4156768,2529.3,2529.2,7.5757384]
[1725065359924,4.4156768,2529.3,2529.2,9.11994464]
[1725065360124,4.4156768,2529.3,2529.2,7.5757384]
[1725065360512,4.4156768,2529.3,2529.2,9.11994464]
[1725065361221,4.4156768,2529.3,2529.2,9.12034431]
[1725065361913,4.4156768,2529.3,2529.2,9.12037234]
[1725065362425,4.4156768,2529.3,2529.2,8.11308771]
[1725065362619,4.4156768,2529.3,2529.2,9.12024056]
[1725065363124,4.4156768,2529.3,2529.2,5.16664056]
[1725065363423,4.18460364,2529.4,2529.3,0.27676]
[1725065363624,1.8603,2529.5,2529.3,4.29297385]
[1725065363824,1.8603,2529.5,2529.4,0.39064858]
[1725065364337,10.32434139,2529.5,2529.4,0.39064858]
[1725065365317,0.27676,2529.4,2529.2,1.03155953]
[1725065365627,0.27676,2529.4,2529.3,1.42226677]
[1725065366017,4.19690954,2529.4,2529.3,1.42226677]
[1725065366324,4.19690954,2529.4,2529.3,1.69902668]
[1725065366514,4.19690954,2529.4,2529.3,2.06282668]
[1725065366915,4.19690954,2529.4,2529.3,1.78605668]
[1725065367729,4.19690954,2529.4,2529.3,2.06282668]
[1725065369425,0.7203,2529.5,2529.3,2.06282668]
[1725065369426,3.2078,2530.0,2529.3,9.21607535]
[1725065369727,3.2078,2530.0,2529.9,0.2767]
[1725065369728,9.12638675,2530.0,2529.9,0.2767]
[1725065370031,4.7186,2530.0,2529.9,0.2767]
[1725065370418,9.24365096,2530.0,2529.8,0.658]
[1725065371524,9.24365096,2530.0,2529.9,0.39048927]
[1725065371729,9.24365096,2530.0,2529.9,0.66718927]
[1725065372336,9.24365096,2530.0,2529.9,0.39048927]
[1725065372529,13.19645096,2530.0,2529.8,0.3813]
[1725065372836,13.19645096,2530.0,2529.7,1.66392729]
[1725065372837,9.52034096,2530.0,2529.7,1.66392729]
[1725065373020,8.38034096,2530.0,2529.8,0.3905164]
[1725065373332,8.38034096,2530.0,2529.7,1.66392729]
[1725065373333,1.14,2529.8,2529.7,1.66392729]
[1725065373630,5.65956258,2529.8,2529.7,1.7776641]
[1725065374333,5.65956258,2529.8,2529.7,2.0543841]
[1725065374731,15.88907258,2529.8,2529.7,0.39045681]
[1725065375030,15.88907258,2529.8,2529.2,3.18275658]
[1725065375031,0.27677,2529.3,2529.2,1.03180729]
[1725065375229,0.27678,2529.2,2529.1,1.03180729]
[1725065375429,0.27679,2529.1,2528.9,1.03180729]
[1725065375731,4.24919024,2529.0,2528.9,1.03180729]
[1725065376131,4.24919024,2529.0,2528.9,1.41640729]
[1725065376731,4.24919024,2529.0,2528.9,1.03180729]
[1725065376926,8.20359024,2529.0,2528.9,1.03180729]
[1725065377238,4.24919024,2529.0,2528.8,1.31456036]
[1725065380336,1.5124,2528.9,2528.8,1.31456036]
[1725065380533,1.5124,2528.9,2528.8,1.03774036]
[1725065380840,9.99005112,2528.9,2528.8,0.00593307]
[1725065381230,6.03565112,2528.9,2528.8,0.00593307]
[1725065381432,6.03565112,2528.9,2528.8,1.03774036]
[1725065381735,6.03565112,2528.9,2528.8,1.31456036]
[1725065382333,5.65405112,2528.9,2528.8,1.31456036]
[1725065382534,5.65405112,2528.9,2528.8,0.28275307]
[1725065384041,5.28165112,2528.9,2528.8,0.28275307]
[1725065385835,4.14165112,2528.9,2528.8,0.28275307]
[1725065386239,0.39,2529.2,2528.8,0.28275307]
[1725065386240,4.25271559,2529.0,2528.9,0.27681]
[1725065386541,5.39271559,2529.1,2528.9,1.05381]
[1725065386739,1.14,2529.1,2528.9,1.05381]
[1725065387144,4.25271559,2529.0,2528.9,1.05381]
[1725065387734,4.25271559,2529.0,2528.9,0.66461]
[1725065387952,4.62371559,2529.0,2528.9,0.66461]
[1725065389243,4.25271559,2529.0,2528.9,0.66461]
[1725065390647,4.62241559,2529.0,2528.9,0.66461]
[1725065392551,4.62241559,2529.0,2528.9,0.3878]
[1725065392749,4.89921559,2529.0,2528.9,0.3878]
[1725065393054,4.62241559,2529.0,2528.9,0.3878]
[1725065393554,4.62241559,2529.0,2528.9,0.66461]
[1725065395149,4.62241559,2529.0,2528.9,0.3878]
[1725065396861,4.25271559,2529.0,2528.9,0.3878]
[1725065397059,4.25271559,2529.0,2528.9,0.66461]
[1725065399164,5.39271559,2529.0,2528.9,0.3878]
[1725065399349,9.34711559,2529.0,2528.8,0.00593307]
[1725065399555,1.02361,2528.9,2528.8,0.00593307]
[1725065399753,9.11146338,2528.9,2528.8,0.00593307]
[1725065402159,5.15706338,2528.9,2528.8,0.00593307]
[1725065403157,9.11146338,2528.9,2528.8,0.00593307]
[1725065404265,4.13345338,2528.9,2528.8,0.28275307]
[1725065404576,4.13345338,2528.9,2528.8,6.02438954]
[1725065404770,1.14,2529.3,2529.1,0.27678]
[1725065404957,1.14,2529.3,2529.2,1.1081]
[1725065405262,5.67051298,2529.3,2529.2,1.1081]
[1725065407159,8.87831298,2529.3,2529.2,1.1081]
[1725065414869,5.67051298,2529.3,2529.2,1.1081]
[1725065415261,8.87831298,2529.3,2529.2,1.1081]
[1725065415765,8.87831298,2529.3,2529.2,1.38488]
[1725065416569,7.73831298,2529.3,2529.2,1.38488]
[1725065416777,8.87831298,2529.3,2529.2,1.38488]
[1725065417670,5.67051298,2529.3,2529.2,1.38488]
[1725065417875,8.87831298,2529.3,2529.2,1.38488]
[1725065418776,5.67051298,2529.3,2529.2,1.38488]
[1725065419476,8.87831298,2529.3,2529.2,2.8074608]
[1725065419879,5.67051298,2529.3,2529.2,2.8074608]
[1725065420376,8.87831298,2529.3,2529.2,3.42415635]
[1725065420570,8.87831298,2529.3,2529.2,5.40350244]
[1725065420875,5.67051298,2529.3,2529.2,5.40355277]
[1725065421177,8.87831298,2529.3,2529.2,4.78680689]
[1725065421567,5.67051298,2529.3,2529.2,4.78680689]
[1725065421768,8.87831298,2529.3,2529.2,4.78680689]
[1725065422267,8.87831298,2529.3,2529.2,5.30097842]
[1725065422574,8.87831298,2529.3,2529.2,3.36249397]
[1725065422875,8.87831298,2529.3,2529.2,4.39588204]
[1725065423178,8.87831298,2529.3,2529.2,4.3958949]
[1725065423179,5.67051298,2529.3,2529.2,4.3958949]
[1725065423675,5.67051298,2529.3,2529.2,8.3494949]
[1725065423877,5.67051298,2529.3,2529.2,8.86380491]
[1725065424078,8.87831298,2529.3,2529.2,8.3494293]
[1725065424275,5.67051298,2529.3,2529.2,6.37181533]
[1725065425075,8.87831298,2529.3,2529.2,6.37181533]
[1725065425276,8.87831298,2529.3,2529.2,1.03333533]
[1725065425576,0.27678,2529.2,2529.1,1.03333533]
[1725065425775,4.59948,2529.2,2529.0,1.03333533]
[1725065425978,1.5271,2529.1,2529.0,1.03333533]
[1725065426179,1.5271,2529.1,2529.0,3.01115564]
[1725065426476,9.90816416,2529.1,2529.0,3.01115564]
[1725065427576,10.18495416,2529.1,2529.0,1.03333533]
[1725065428081,10.18495416,2529.1,2529.0,1.42419275]
[1725065428882,10.18495416,2529.1,2529.0,0.39085742]
[1725065429190,5.56666416,2529.1,2529.0,1.42419275]
[1725065429473,5.56666416,2529.1,2529.0,1.79999275]
[1725065429673,5.56666416,2529.1,2529.0,1.79998147]
[1725065430682,5.84345416,2529.1,2529.0,1.42418147]
[1725065431683,9.99584556,2529.1,2529.0,0.39084614]
[1725065432575,0.2768,2529.0,2528.9,1.03333533]
[1725065432773,7.8179,2529.0,2528.9,0.39092811]
[1725065433075,0.27681,2528.9,2528.8,1.0392684]
[1725065433280,1.14,2528.9,2528.8,1.80861548]
[1725065433581,5.68346596,2528.9,2528.8,1.80861548]
[1725065434573,9.91467596,2528.9,2528.8,1.80861548]
[1725065435875,9.63786596,2528.9,2528.8,1.80861548]
[1725065436180,5.68346596,2528.9,2528.8,4.40329636]
[1725065436383,5.68346596,2528.9,2528.8,1.4176684]
[1725065436578,5.68346596,2528.9,2528.8,1.80848908]
[1725065436781,9.91467596,2528.9,2528.8,1.80848908]
[1725065438277,9.91467596,2528.9,2528.8,0.00593307]
[1725065438478,9.91467596,2528.9,2528.8,0.39680117]
[1725065439484,9.91467596,2528.9,2528.8,0.00593307]
[1725065439485,10.60670596,2528.9,2528.8,0.00593307]
[1725065439681,16.60670596,2528.9,2528.8,0.00593307]
[1725065440382,16.60670596,2528.9,2528.3,1.38973533]
[1725065440383,0.27686,2528.4,2528.3,0.3564]
[1725065440683,0.27686,2528.4,2528.3,0.74751714]
[1725065440684,1.41686,2528.4,2528.3,0.74751714]
[1725065440890,5.58988129,2528.4,2528.3,0.74751714]
[1725065442285,5.58988129,2528.4,2528.2,1.03333533]
[1725065442286,9.54508129,2528.4,2528.2,1.03333533]
[1725065442477,5.58988129,2528.4,2528.2,1.03333533]
[1725065442684,0.3607,2528.3,2528.1,2.1795684]
[1725065442979,0.3607,2528.3,2528.2,1.42444881]
[1725065443279,8.31761534,2528.2,2527.6,1.03333533]
[1725065443490,0.27695,2527.6,2527.5,0.385]
[1725065443683,3.48475,2527.6,2527.5,0.385]
[1725065443882,11.3304881,2527.6,2527.1,1.31034533]
[1725065444199,3.2078,2527.3,2527.2,0.7627]
[1725065444392,1.14,2527.3,2527.2,0.7627]
[1725065444685,4.3478,2527.4,2527.3,0.27698]
[1725065445191,8.75682707,2527.4,2527.2,0.7627]
[1725065445483,8.75682707,2527.4,2527.2,1.03969]
[1725065445678,8.75682707,2527.4,2527.3,0.27698]
[1725065446079,8.75682707,2527.4,2527.3,4.23378]
[1725065446287,7.61682707,2527.4,2527.3,4.23378]
[1725065446880,7.3348,2528.2,2527.7,0.27694]
[1725065447080,3.01691,2528.0,2527.8,0.7661]
[1725065447280,3.2078,2527.9,2527.8,0.7661]
[1725065447690,7.38498856,2527.9,2527.8,0.7661]
[1725065448080,4.17718856,2527.9,2527.8,0.7661]
[1725065448281,7.38498856,2527.9,2527.8,0.7661]
[1725065448986,7.66190856,2527.9,2527.8,0.7661]
[1725065449489,7.38498856,2527.9,2527.8,0.7661]
[1725065452887,7.66190856,2527.9,2527.8,0.7661]
[1725065453591,7.38498856,2527.9,2527.8,0.7661]
[1725065454793,7.66190856,2527.9,2527.8,0.7661]
[1725065455479,4.45410856,2527.9,2527.8,0.7661]
[1725065455691,7.66190856,2527.9,2527.8,0.7661]
[1725065456893,7.38498856,2527.9,2527.8,0.7661]
[1725065457283,7.66190856,2527.9,2527.8,0.7661]
[1725065460890,7.66190856,2527.9,2527.2,4.158]
[1725065460891,17.34098856,2527.9,2527.2,4.158]
[1725065461083,3.01698,2527.3,2527.2,4.158]
[1725065461283,3.01699,2527.3,2527.1,0.372]
[1725065461587,4.4718838,2527.3,2527.1,0.372]
[1725065461789,3.2078,2527.6,2527.2,3.9568]
[1725065461991,3.2078,2527.6,2527.5,0.27696]
[1725065462393,7.25309677,2527.6,2527.5,4.23376]
[1725065462989,4.04529677,2527.6,2527.5,4.23376]
[1725065463596,7.25309677,2527.6,2527.5,4.23376]
[1725065467096,4.04529677,2527.6,2527.5,4.23376]
[1725065476202,3.2078,2528.1,2528.0,0.27691]
[1725065476512,7.72833791,2528.1,2528.0,0.27691]
[1725065477095,8.86833791,2528.1,2527.9,0.27691]
[1725065477303,7.72833791,2528.1,2528.0,0.3741]
[1725065478106,4.52053791,2528.1,2528.0,0.3741]
[1725065478311,8.86833791,2528.1,2527.7,0.27694]
[1725065478603,1.14,2527.8,2527.7,0.65104]
[1725065478799,3.2078,2528.1,2527.7,4.60704]
[1725065479006,1.14,2527.9,2527.8,0.27693]
[1725065479409,1.14,2527.9,2527.8,4.23293]
[1725065481202,1.14,2527.9,2527.8,3.956]
[1725065481402,1.14,2527.9,2527.7,0.65103]
[1725065481403,5.34855512,2527.9,2527.7,0.65103]
[1725065481910,5.34855512,2527.9,2527.8,0.27693]
[1725065482311,15.30455512,2527.9,2527.4,1.03333533]
[1725065482616,1.41697,2527.5,2527.3,1.03333533]
[1725065482809,3.2078,2527.4,2527.2,1.41363533]
[1725065483005,8.34465812,2527.4,2527.2,1.41363533]
[1725065483317,8.06768812,2527.4,2527.2,1.41363533]
[1725065483511,8.06768812,2527.4,2527.1,1.03333533]
[1725065483512,1.41698,2527.3,2527.1,1.03333533]
[1725065483910,4.41690926,2527.2,2527.1,1.03333533]
[1725065484106,4.41690926,2527.2,2527.1,0.39183038]
[1725065484312,4.41690926,2527.2,2527.1,1.42517618]
[1725065484818,4.41690926,2527.2,2527.1,0.39184085]
[1725065485318,4.41690926,2527.2,2527.1,1.42517618]
[1725065487113,4.41690926,2527.2,2527.1,0.39184085]
[1725065487315,4.41690926,2527.2,2527.1,1.42517618]
[1725065487510,4.41690926,2527.2,2527.1,0.39184085]
[1725065487814,4.41690926,2527.2,2527.0,1.6965884]
[1725065488019,3.2078,2527.1,2527.0,1.3162884]
[1725065488219,4.3478,2527.1,2527.0,1.70815554]
[1725065488414,8.75091839,2527.1,2527.0,1.43113554]
[1725065488611,8.75091839,2527.1,2527.0,0.00593307]
[1725065489517,8.47390839,2527.1,2527.0,0.00593307]
[1725065490619,8.47390839,2527.1,2527.0,0.28295307]
[1725065491017,8.47390839,2527.1,2527.0,0.65445307]
[1725065491618,5.26610839,2527.1,2527.0,0.65445307]
[1725065492021,8.47390839,2527.1,2527.0,0.65445307]
[1725065493619,7.33390839,2527.1,2527.0,4.61125307]
[1725065493820,4.12610839,2527.1,2527.0,4.61125307]
[1725065494211,4.12610839,2527.1,2527.0,5.00292398]
[1725065494412,4.12610839,2527.1,2527.0,4.61125307]
[1725065494616,4.12610839,2527.1,2527.0,5.00293061]
[1725065495221,4.12610839,2527.1,2527.0,6.03626594]
[1725065495419,0.00593307,2527.3,2527.2,0.277]
[1725065495812,0.00593307,2527.3,2527.2,4.2338]
[1725065496228,0.00593307,2527.3,2527.2,5.65893689]
[1725065496827,0.00593307,2527.3,2527.2,8.8445333]
[1725065497030,0.00593307,2527.3,2527.2,9.4624502]
[1725065497228,3.9411,2527.7,2527.6,0.27695]
[1725065497229,1.14,2527.7,2527.6,0.27695]
[1725065497625,5.59330339,2527.7,2527.6,0.27695]
[1725065497923,8.80110339,2527.7,2527.6,0.65215]
[1725065498319,5.59330339,2527.7,2527.6,0.65215]
[1725065498523,8.80110339,2527.7,2527.6,0.65215]
[1725065502933,5.59330339,2527.7,2527.6,0.65215]
[1725065503133,8.80110339,2527.7,2527.6,0.65215]
[1725065503528,5.59330339,2527.7,2527.6,0.65215]
[1725065503837,8.80110339,2527.7,2527.6,0.65215]
[1725065504035,5.59330339,2527.7,2527.6,0.65215]
[1725065504252,8.80110339,2527.7,2527.6,0.65215]
[1725065508148,5.59330339,2527.7,2527.6,0.65215]
[1725065508349,8.80110339,2527.7,2527.6,0.65215]
[1725065509360,5.59330339,2527.7,2527.6,0.65215]
[1725065509545,8.80110339,2527.7,2527.6,0.65215]
[1725065510046,5.59330339,2527.7,2527.6,0.65215]
[1725065511049,8.80110339,2527.7,2527.6,0.65215]
[1725065512644,5.59330339,2527.7,2527.6,0.65215]
[1725065512849,8.80110339,2527.7,2527.6,0.65215]
[1725065514356,8.80110339,2527.7,2527.5,1.31010032]
[1725065514548,1.14,2527.6,2527.4,1.03315032]
[1725065514755,0.378,2527.5,2527.3,1.41075032]
[1725065514958,4.85250399,2527.5,2527.3,0.3776]
[1725065515152,0.3643,2527.4,2527.3,0.3776]
[1725065515451,4.83880399,2527.4,2527.3,0.3776]
[1725065515653,9.93560399,2527.4,2527.2,5.46814032]
[1725065515853,5.97880399,2527.4,2527.2,4.43499]
[1725065516954,5.97880399,2527.4,2527.3,0.27698]
[1725065517155,4.47450399,2527.4,2527.3,0.27698]
[1725065517958,3.2078,2527.7,2527.6,0.27695]
[1725065518256,7.55093938,2527.7,2527.6,0.27695]
[1725065519154,4.34313938,2527.7,2527.6,0.27695]
[1725065519353,4.34313938,2527.7,2527.6,0.66825224]
[1725065519553,1.88503307,2527.9,2527.8,0.27693]
[1725065520052,9.81511509,2527.9,2527.8,0.27693]
[1725065520359,5.85911509,2527.9,2527.8,0.27693]
[1725065521362,3.98001509,2527.9,2527.8,0.27693]
[1725065521859,3.98001509,2527.9,2527.8,1.02653]
[1725065524459,3.98001509,2527.9,2527.8,1.4177488]
[1725065525262,3.98001509,2527.9,2527.8,1.02653]
[1725065525468,3.98001509,2527.9,2527.8,3.14281863]
[1725065525663,1.5151,2528.3,2528.2,0.27689]
[1725065525866,1.14,2528.3,2528.2,0.27689]
[1725065526171,1.14,2528.3,2528.0,1.72465579]
[1725065526172,3.2078,2528.4,2528.3,0.27687]
[1725065526558,7.53199254,2528.4,2528.3,0.27687]
[1725065527170,0.27688,2528.3,2528.0,0.2769]
[1725065527466,1.14,2528.1,2528.0,0.2769]
[1725065527862,5.50087293,2528.1,2528.0,0.2769]
[1725065530259,5.50087293,2528.1,2527.8,4.89852579]
[1725065530478,1.14,2527.9,2527.8,3.86613]
[1725065530866,9.9031956,2527.9,2527.6,1.30935579]
[1725065531070,0.27696,2527.6,2527.3,1.03240579]
[1725065531272,0.27696,2527.6,2527.2,4.73469695]
[1725065531273,1.14,2527.4,2527.2,4.73469695]
[1725065531466,1.14,2527.4,2527.2,3.70229116]
[1725065531775,3.96406053,2527.3,2527.2,4.51719579]
[1725065531973,3.96406053,2527.3,2527.2,3.48479]
[1725065532273,3.96406053,2527.3,2527.2,4.51719579]
[1725065532473,3.96406053,2527.3,2527.2,4.90869912]
[1725065532662,4.25508096,2527.4,2527.3,0.27698]
[1725065532867,0.3877,2527.5,2527.3,0.27698]
[1725065533366,4.25508096,2527.4,2527.3,0.27698]
[1725065533863,4.25508096,2527.4,2527.3,6.02923752]
[1725065534467,2.74,2527.5,2527.3,1.30938579]
[1725065534678,2.74,2527.5,2527.3,1.03240579]
[1725065534874,4.13834717,2527.4,2527.3,0.27698]
[1725065535270,4.13834717,2527.4,2527.3,1.70088728]
[1725065536281,17.30294717,2527.4,2527.1,1.03240579]
[1725065536474,17.30294717,2527.4,2527.0,0.00593307]
[1725065536475,0.277,2527.2,2527.0,0.00593307]
[1725065536681,0.62921,2527.1,2527.0,0.00593307]
[1725065536979,8.98405117,2527.1,2527.0,0.00593307]
[1725065537179,4.58601,2527.1,2527.0,0.00593307]
[1725065537381,8.98405117,2527.1,2527.0,0.00593307]
[1725065537577,8.70704117,2527.1,2527.0,0.00593307]
[1725065542178,8.98405117,2527.1,2527.0,0.00593307]
[1725065550685,4.67505117,2527.1,2527.0,0.00593307]
[1725065552279,8.63185117,2527.1,2527.0,0.00593307]
[1725065553484,9.32437117,2527.1,2527.0,0.00593307]
[1725065553785,15.32437117,2527.1,2527.0,0.00593307]
[1725065554286,16.46437117,2527.1,2527.0,0.00593307]
[1725065555594,5.53804117,2527.1,2527.0,0.00593307]
[1725065555791,5.81505117,2527.1,2527.0,0.00593307]
[1725065555985,5.81505117,2527.1,2527.0,0.39443307]
[1725065556185,7.41505117,2527.1,2527.0,0.75743307]
[1725065556386,7.13804117,2527.1,2527.0,0.75743307]
[1725065556683,7.13804117,2527.1,2527.0,1.03445307]
[1725065557990,10.34584117,2527.1,2527.0,0.36893307]
[1725065558291,14.57965117,2527.1,2527.0,0.36893307]
[1725065558484,10.62285117,2527.1,2527.0,0.36893307]
[1725065558685,14.57965117,2527.1,2527.0,0.36893307]
[1725065559590,14.57965117,2527.1,2527.0,0.00593307]
[1725065559792,15.63767117,2527.1,2527.0,0.00593307]
[1725065562194,11.68087117,2527.1,2527.0,0.00593307]
[1725065562394,15.63767117,2527.1,2527.0,0.00593307]
[1725065563498,12.42987117,2527.1,2527.0,0.00593307]
[1725065563691,15.63767117,2527.1,2527.0,0.00593307]
[1725065565593,12.42987117,2527.1,2527.0,0.00593307]
[1725065566289,15.63767117,2527.1,2527.0,0.00593307]
[1725065570595,14.94515117,2527.1,2527.0,0.00593307]
[1725065570794,10.62285117,2527.1,2527.0,0.00593307]
[1725065576899,15.31795117,2527.1,2527.0,0.00593307]
[1725065577105,0.27704,2526.8,2526.7,0.7523]
[1725065577311,6.22484,2526.8,2526.7,0.7523]
[1725065577603,11.46623478,2526.8,2526.7,0.365]
[1725065578213,9.86623478,2526.8,2526.7,0.365]
[1725065579807,6.65843478,2526.8,2526.7,0.365]
[1725065580303,9.86623478,2526.8,2526.7,0.365]
[1725065580505,9.17362478,2526.8,2526.7,0.365]
[1725065582398,9.17362478,2526.8,2526.7,0.7569512]
[1725065582905,9.17362478,2526.8,2526.7,0.365]
[1725065583407,9.17362478,2526.8,2526.7,0.75695617]
[1725065583606,9.17362478,2526.8,2526.7,0.365]
[1725065584806,9.17362478,2526.8,2526.7,0.75695745]
[1725065585010,9.17362478,2526.8,2526.7,0.365]
[1725065585511,9.17362478,2526.8,2526.7,0.75695698]
[1725065586012,9.17362478,2526.8,2526.7,0.365]
[1725065592015,0.96972,2526.6,2526.5,0.00593307]
[1725065592216,2.10972,2526.6,2526.5,0.00593307]
[1725065592524,6.6067155,2526.6,2526.5,0.00593307]
[1725065592723,6.9790155,2526.6,2526.5,0.00593307]
[1725065597316,10.1868155,2526.6,2526.5,0.00593307]
[1725065598214,10.1868155,2526.6,2526.5,0.35963307]
[1725065598415,9.4941555,2526.6,2526.5,0.35963307]
[1725065601616,13.4517555,2526.6,2526.5,0.00593307]
[1725065603625,10.2439555,2526.6,2526.5,0.00593307]
[1725065603820,13.4517555,2526.6,2526.5,0.00593307]
[1725065606820,10.2439555,2526.6,2526.5,0.00593307]
[1725065607226,13.4517555,2526.6,2526.5,0.00593307]
[1725065608528,9.1218555,2526.6,2526.5,0.00593307]
[1725065608725,13.0794555,2526.6,2526.5,0.00593307]
[1725065609623,9.8716555,2526.6,2526.5,0.00593307]
[1725065609820,7.7047955,2526.6,2526.5,4.24060307]
[1725065610229,6.5329955,2526.6,2526.5,13.2526516]
[1725065610432,6.5329955,2526.6,2526.5,13.76997129]
[1725065612025,6.5329955,2526.6,2526.5,13.76993709]
[1725065612326,6.5329955,2526.6,2526.5,14.16153404]
[1725065612631,0.3623,2527.4,2527.0,0.27701]
[1725065612928,5.10289729,2527.1,2527.0,0.27701]
[1725065613528,5.10289729,2527.1,2527.0,4.23381]
[1725065615316,8.31069729,2527.1,2527.0,4.23381]
[1725065616528,5.10289729,2527.1,2527.0,4.23381]
[1725065617029,5.10289729,2527.1,2527.0,4.62523259]
[1725065617220,5.10289729,2527.1,2527.0,4.23381]
[1725065617423,5.10289729,2527.1,2527.0,4.62521824]
[1725065618326,5.10289729,2527.1,2527.0,4.62521445]
[1725065619228,5.10289729,2527.1,2527.0,4.23381]
[1725065619418,5.10289729,2527.1,2527.0,4.62520093]
[1725065619620,5.10289729,2527.1,2527.0,4.23381]
[1725065627126,3.96289729,2527.1,2527.0,4.23381]
[1725065627439,8.91172516,2527.2,2527.1,0.27701]
[1725065627829,4.3478,2527.2,2527.1,0.27701]
[1725065628024,4.50312878,2527.2,2527.1,9.9568]
[1725065628421,0.00593307,2527.3,2527.2,0.277]
[1725065628626,0.00593307,2527.3,2527.2,4.62]
[1725065629227,1.14593307,2527.3,2527.2,4.62]
[1725065629838,5.3179459,2527.3,2527.2,4.62]
[1725065630036,6.0537459,2527.3,2527.2,4.62]
[1725065634733,6.4435459,2527.3,2527.2,0.6632]
[1725065638839,6.4435459,2527.3,2527.2,11.3125]
[1725065638840,0.00593307,2527.3,2527.2,11.3125]
[1725065639342,0.00593307,2527.3,2527.2,10.62]
[1725065640739,0.00593307,2527.3,2527.2,11.6238]
[1725065642448,0.00593307,2527.3,2527.2,11.3125]
[1725065644243,0.00593307,2527.3,2527.2,5.3125]
[1725065645538,0.00593307,2527.3,2527.2,11.3125]
[1725065646940,0.00593307,2527.3,2527.2,12.73823292]
[1725065646941,0.00165087,2527.3,2527.2,12.73823292]
[1725065647244,0.00165087,2527.3,2527.2,15.23253698]
[1725065647452,0.00165087,2527.3,2527.2,15.85035338]
[1725065648149,0.00165087,2527.3,2527.2,15.23253698]
[1725065648345,0.00165087,2527.3,2527.2,15.85033533]
[1725065648535,0.00165087,2527.3,2527.2,15.23253698]
[1725065649138,0.00165087,2527.3,2527.2,14.84106192]
[1725065649339,0.00165087,2527.3,2527.2,15.85032964]
[1725065649749,0.00165087,2527.3,2527.2,15.85030592]
[1725065651755,0.00165087,2527.3,2527.2,15.85028917]
[1725065652568,0.00165087,2527.3,2527.2,14.30056369]
[1725065652967,0.00165087,2527.3,2527.2,13.29129597]
[1725065653165,0.00165087,2527.3,2527.2,14.30059055]
[1725065653865,0.00165087,2527.3,2527.2,16.35459097]
[1725065654469,0.00165087,2527.3,2527.2,20.31218979]
[1725065654860,0.00165087,2527.3,2527.2,20.31219323]
[1725065655570,0.00165087,2527.3,2527.2,18.25819281]
[1725065656667,0.00165087,2527.3,2527.2,17.24889823]
[1725065656870,0.00165087,2527.3,2527.2,18.25820699]
[1725065657662,0.00165087,2527.3,2527.2,20.82570752]
[1725065659764,0.00165087,2527.3,2527.2,20.82568463]